fUSD/lending_fUSD_20260527
["ID","MTS","AMOUNT","RATE_DAILY","PERIOD"]
[423141473,1779889832000,-500.0,0.00021449,2]
[423141477,1779889832000,-2351.0,0.0002175,2]
[423141468,1779889832000,-344.63,0.00021273,2]
[423141475,1779889832000,-500.0,0.00021723,2]
[423141470,1779889832000,-537.51,0.00021311,2]
[423141467,1779889832000,-500.0,0.00021175,2]
[423141485,1779889832000,-13364.99661497,0.00022373,2]
[423141464,1779889832000,-526.5087776,0.00020901,2]
[423141465,1779889832000,-1102.4178676,0.00020901,2]
[423141466,1779889832000,-500.0,0.00020901,2]
[423141463,1779889832000,-9760.7600106,0.00020901,2]
[423141487,1779889832000,-537.51,0.00022889,2]
[423141504,1779889832000,-537.51,0.00025257,2]
[423141471,1779889832000,-1003.8693492,0.00021332,2]
[423141502,1779889832000,-514.0,0.00025082,2]
[423141500,1779889832000,-6531.19217272,0.00024491,2]
[423141560,1779889832000,-9760.7600106,0.00027076,2]
[423141562,1779889832000,-442.02937055,0.00027076,2]
[423141561,1779889832000,-526.5087776,0.00027076,2]
[423141553,1779889832000,-7735.77259101,0.00026188,2]
[423141563,1779889832000,-508.0,0.00027076,2]
[423141555,1779889832000,-1291.05,0.0002624,2]
[423141557,1779889832000,-13364.99661497,0.0002661,2]
[423141534,1779889832000,-10868.65726988,0.00026188,2]
[423141532,1779889832000,-336.06576818,0.00026187,2]
[423141530,1779889832000,-208.04737903,0.00026187,2]
[423141559,1779889832000,-537.51,0.00026836,2]
[423141526,1779889832000,-500.0,0.00026187,2]
[423141528,1779889832000,-500.0,0.00026187,2]
[423141506,1779889832000,-456.2,0.00025786,2]
[423141508,1779889832000,-274.36,0.00025786,2]
[423141510,1779889832000,-344.63,0.00025786,2]
[423141522,1779889832000,-537.51,0.00026047,2]
[423141520,1779889832000,-968.67,0.00026006,7]
[423141518,1779889832000,-1317.656888,0.00026,2]
[423141514,1779889832000,-500.0,0.00025866,2]
[423141524,1779889832000,-541.0,0.00026144,2]
[423141516,1779889832000,-1358.42,0.00025933,2]
[423141512,1779889832000,-17259.14,0.00025791,2]
[423141581,1779889837000,-500.0,0.00020077,2]
[423141573,1779889837000,-500.0,0.00020077,2]
[423141575,1779889837000,-500.0,0.00020077,2]
[423141574,1779889837000,-500.0,0.00020077,2]
[423141572,1779889837000,-615.95,0.00020077,2]
[423141567,1779889837000,-500.0,0.00020077,2]
[423141569,1779889837000,-100.0,0.00020077,2]
[423141570,1779889837000,-400.0,0.00020077,2]
[423141568,1779889837000,-500.0,0.00020077,2]
[423141566,1779889837000,-500.0,0.00020077,2]
[423141584,1779889837000,-500.0,0.00020077,2]
[423141571,1779889837000,-500.0,0.00020077,2]
[423141579,1779889837000,-500.0,0.00020077,2]
[423141580,1779889837000,-500.0,0.00020077,2]
[423141577,1779889837000,-500.0,0.00020077,2]
[423141583,1779889837000,-500.0,0.00020077,2]
[423141589,1779889837000,-500.0,0.00020077,2]
[423141593,1779889837000,-166.66,0.00027485,30]
[423141592,1779889837000,-944.48,0.000274,2]
[423141594,1779889837000,-1498.22407538,0.00027525,2]
[423141591,1779889837000,-586.0,0.00027228,7]
[423141588,1779889837000,-500.0,0.00020077,2]
[423141590,1779889837000,-152.38849705,0.00027076,2]
[423141587,1779889837000,-500.0,0.00020077,2]
[423141586,1779889837000,-500.0,0.00020077,2]
[423141578,1779889837000,-500.0,0.00020077,2]
[423141576,1779889837000,-500.0,0.00020077,2]
[423141582,1779889837000,-500.0,0.00020077,2]
[423141585,1779889837000,-392.18339547,0.00020077,2]
[423141638,1779889838000,-500.0,0.00030638,30]
[423141631,1779889838000,-200.0,0.0003031,15]
[423141634,1779889838000,-152.0,0.00030326,3]
[423141632,1779889838000,-297.49312412,0.0003031,15]
[423141637,1779889838000,-662.78,0.00030466,2]
[423141627,1779889838000,-537.51,0.00029993,2]
[423141628,1779889838000,-162.7,0.00030181,2]
[423141636,1779889838000,-1000.0,0.0003045,10]
[423141633,1779889838000,-593.0,0.00030313,10]
[423141674,1779889838000,-613.09246642,0.000315,51]
[423141651,1779889838000,-3177.9245846,0.00030847,2]
[423141630,1779889838000,-200.0,0.0003031,15]
[423141635,1779889838000,-908.0,0.000304,5]
[423141640,1779889838000,-1991.69,0.00030638,120]
[423141645,1779889838000,-163.0,0.00030723,30]
[423141657,1779889838000,-1498.22407538,0.00030902,2]
[423141642,1779889838000,-208.97895572,0.00030645,2]
[423141644,1779889838000,-215.46156935,0.00030653,2]
[423141659,1779889838000,-210.07,0.00030934,120]
[423141661,1779889838000,-5000.0,0.00030973,2]
[423141663,1779889838000,-247.45,0.00030974,120]
[423141649,1779889838000,-944.48,0.00030837,2]
[423141647,1779889838000,-9564.57257441,0.00030793,2]
[423141667,1779889838000,-1182.49,0.00031,2]
[423141669,1779889838000,-1958.43,0.00031114,2]
[423141671,1779889838000,-514.0,0.00031184,8]
[423141665,1779889838000,-200.0,0.00030983,2]
[423141629,1779889838000,-2770.0,0.000303,10]
[423141655,1779889838000,-10187.07203037,0.00030847,2]
[423141626,1779889838000,-2500.0,0.00029939,120]
[423141600,1779889838000,-3988.79,0.0002844,10]
[423141620,1779889838000,-165.0,0.00029723,30]
[423141682,1779889838000,-1794.55047241,0.000315,51]
[423141596,1779889838000,-929.62280596,0.0002796,2]
[423141597,1779889838000,-3323.99,0.00028374,10]
[423141598,1779889838000,-500.0,0.00028384,2]
[423141595,1779889838000,-537.51,0.00027625,2]
[423141602,1779889838000,-164.66,0.00028587,30]
[423141604,1779889838000,-159.67,0.00028677,30]
[423141610,1779889838000,-161.76,0.00029,7]
[423141599,1779889838000,-537.51,0.00028414,2]
[423141611,1779889838000,-1570.31502718,0.00029,2]
[423141605,1779889838000,-150.0,0.00028696,30]
[423141601,1779889838000,-491.29,0.0002845,7]
[423141603,1779889838000,-150.0,0.00028604,30]
[423141623,1779889838000,-171.0,0.00029726,30]
[423141612,1779889838000,-3086.41957653,0.00029087,2]
[423141606,1779889838000,-13364.99661497,0.00028729,2]
[423141607,1779889838000,-161.75,0.00028736,30]
[423141608,1779889838000,-150.0,0.00029,2]
[423141614,1779889838000,-1498.22407538,0.00029214,2]
[423141624,1779889838000,-203.55979943,0.0002988,20]
[423141625,1779889838000,-1200.07,0.00029921,2]
[423141613,1779889838000,-537.51,0.00029204,2]
[423141615,1779889838000,-294.87500725,0.00029216,2]
[423141618,1779889838000,-329.16,0.00029671,7]
[423141616,1779889838000,-518.25,0.00029325,2]
[423141622,1779889838000,-161.9303172,0.00029726,30]
[423141621,1779889838000,-162.0,0.00029723,30]
[423141619,1779889838000,-160.0,0.00029723,30]
[423141609,1779889838000,-164.66,0.00029,2]
[423141676,1779889838000,-1546.33586076,0.000315,51]
[423141740,1779889838000,-9564.57257439,0.00033605,2]
[423141672,1779889838000,-662.78,0.00031227,2]
[423141759,1779889838000,-800.0,0.00034268,10]
[423141756,1779889838000,-800.0,0.00034268,10]
[423141757,1779889838000,-800.0,0.00034268,10]
[423141758,1779889838000,-800.0,0.00034268,10]
[423141744,1779889838000,-800.0,0.00034268,10]
[423141760,1779889838000,-800.0,0.00034268,10]
[423141742,1779889838000,-863.68638929,0.000339,120]
[423141748,1779889838000,-800.0,0.00034268,10]
[423141746,1779889838000,-800.0,0.00034268,10]
[423141750,1779889838000,-800.0,0.00034268,10]
[423141761,1779889838000,-800.0,0.00034268,10]
[423141765,1779889838000,-481.05443962,0.00034268,10]
[423141764,1779889838000,-318.94556038,0.00034268,10]
[423141755,1779889838000,-800.0,0.00034268,10]
[423141762,1779889838000,-574.91802609,0.00034268,10]
[423141767,1779889838000,-306.48513876,0.00034268,10]
[423141768,1779889838000,-800.0,0.00034268,10]
[423141763,1779889838000,-225.08197391,0.00034268,10]
[423141770,1779889838000,-800.0,0.00034268,10]
[423141771,1779889838000,-152.46689554,0.00034268,10]
[423141769,1779889838000,-800.0,0.00034268,10]
[423141773,1779889838000,-800.0,0.00034268,10]
[423141776,1779889838000,-802.07549388,0.00034268,10]
[423141772,1779889838000,-647.53310446,0.00034268,10]
[423141777,1779889838000,-839.18226494,0.0003428,2]
[423141775,1779889838000,-800.0,0.00034268,10]
[423141680,1779889838000,-1342.43832809,0.000315,51]
[423141774,1779889838000,-800.0,0.00034268,10]
[423141766,1779889838000,-493.51486124,0.00034268,10]
[423141752,1779889838000,-800.0,0.00034268,10]
[423141778,1779889838000,-472.2203181,0.0003428,2]
[423141738,1779889838000,-162.7,0.00033534,2]
[423141754,1779889838000,-800.0,0.00034268,10]
[423141684,1779889838000,-1493.00975112,0.000315,51]
[423141686,1779889838000,-9564.57257439,0.0003173,2]
[423141688,1779889838000,-162.7,0.00031857,2]
[423141690,1779889838000,-662.78,0.00031989,2]
[423141693,1779889838000,-863.68638929,0.00032,120]
[423141695,1779889838000,-192.78446307,0.00032,120]
[423141696,1779889838000,-2292.24816502,0.00032115,56]
[423141700,1779889838000,-1544.0,0.00032334,7]
[423141698,1779889838000,-500.0,0.00032164,2]
[423141702,1779889838000,-809.62,0.00032351,32]
[423141703,1779889838000,-1498.22407538,0.00032591,2]
[423141715,1779889838000,-944.48,0.0003324,2]
[423141705,1779889838000,-9564.57257439,0.00032668,2]
[423141678,1779889838000,-1643.94261193,0.000315,51]
[423141711,1779889838000,-13364.99661497,0.00032966,2]
[423141736,1779889838000,-170.99,0.00033529,7]
[423141732,1779889838000,-172.58,0.00033529,7]
[423141730,1779889838000,-177.97,0.00033529,7]
[423141728,1779889838000,-169.62,0.00033529,7]
[423141707,1779889838000,-662.78,0.00032751,2]
[423141734,1779889838000,-181.34,0.00033529,7]
[423141726,1779889838000,-662.78,0.00033512,2]
[423141722,1779889838000,-1102.4178676,0.00033251,2]
[423141717,1779889838000,-9760.7600106,0.0003325,2]
[423141719,1779889838000,-526.5087776,0.00033251,2]
[423141713,1779889838000,-863.68638929,0.00033,120]
[423141709,1779889838000,-169.47,0.00032845,3]
[423141724,1779889838000,-152.0,0.00033501,4]
[423141815,1779889839000,-150.0,0.00035088,7]
[423141816,1779889839000,-171.84,0.0003513,30]
[423141818,1779889839000,-150.0,0.00035366,30]
[423141824,1779889839000,-300.0,0.00035504,2]
[423141806,1779889839000,-8408.76219753,0.00035085,2]
[423141814,1779889839000,-150.0,0.00035088,7]
[423141823,1779889839000,-300.0,0.00035504,2]
[423141808,1779889839000,-150.0,0.00035088,7]
[423141807,1779889839000,-150.0,0.00035088,30]
[423141809,1779889839000,-150.0,0.00035088,7]
[423141822,1779889839000,-500.0,0.00035503,30]
[423141825,1779889839000,-572.23504944,0.00035504,2]
[423141828,1779889839000,-1096.2926835,0.00035504,2]
[423141826,1779889839000,-300.0,0.00035504,2]
[423141820,1779889839000,-9564.57257439,0.0003548,2]
[423141817,1779889839000,-162.7,0.00035211,2]
[423141821,1779889839000,-944.48,0.00035494,2]
[423141838,1779889839000,-300.0,0.00035504,2]
[423141827,1779889839000,-300.0,0.00035504,2]
[423141829,1779889839000,-300.0,0.00035504,2]
[423141831,1779889839000,-300.0,0.00035504,2]
[423141836,1779889839000,-300.0,0.00035504,2]
[423141830,1779889839000,-300.0,0.00035504,2]
[423141833,1779889839000,-300.0,0.00035504,2]
[423141804,1779889839000,-3076.80941744,0.00035085,2]
[423141819,1779889839000,-210.07,0.00035373,120]
[423141805,1779889839000,-1879.425,0.00035085,2]
[423141795,1779889839000,-151.68364513,0.00034726,60]
[423141813,1779889839000,-150.0,0.00035088,7]
[423141779,1779889839000,-186.82149234,0.0003428,2]
[423141780,1779889839000,-221.95960436,0.000344,120]
[423141782,1779889839000,-533.92142509,0.00034468,120]
[423141790,1779889839000,-999.99,0.00034649,10]
[423141787,1779889839000,-7075.47,0.00034649,2]
[423141788,1779889839000,-2595.31,0.00034649,2]
[423141791,1779889839000,-7811.42885072,0.00034649,2]
[423141781,1779889839000,-57.99039564,0.000344,120]
[423141786,1779889839000,-150.99,0.00034649,2]
[423141784,1779889839000,-9564.57257439,0.00034543,2]
[423141783,1779889839000,-1457.76857491,0.00034468,120]
[423141785,1779889839000,-944.48,0.0003464,2]
[423141803,1779889839000,-2500.0,0.00035,2]
[423141789,1779889839000,-9999.99,0.00034649,2]
[423141798,1779889839000,-151.0,0.00034997,14]
[423141793,1779889839000,-299.99,0.00034649,30]
[423141797,1779889839000,-247.45,0.00034846,120]
[423141801,1779889839000,-208.97895572,0.00035,120]
[423141796,1779889839000,-6809.6993,0.000348,2]
[423141799,1779889839000,-301.527,0.00035,120]
[423141794,1779889839000,-20485.1525738,0.00034667,2]
[423141792,1779889839000,-2188.56114928,0.00034649,2]
[423141802,1779889839000,-215.46156935,0.00035,30]
[423141810,1779889839000,-150.0,0.00035088,7]
[423141812,1779889839000,-150.0,0.00035088,7]
[423141811,1779889839000,-150.0,0.00035088,7]
[423141800,1779889839000,-863.68638929,0.00035,120]
[423141835,1779889839000,-300.0,0.00035504,2]
[423141832,1779889839000,-300.0,0.00035504,2]
[423141834,1779889839000,-300.0,0.00035504,2]
[423141873,1779889839000,-950.32029804,0.00035504,2]
[423141867,1779889839000,-344.45437934,0.00035504,2]
[423141866,1779889839000,-300.0,0.00035504,2]
[423141868,1779889839000,-527.62572404,0.00035504,2]
[423141875,1779889839000,-300.0,0.00035504,2]
[423141874,1779889839000,-300.09384644,0.00035504,2]
[423141872,1779889839000,-865.6208675,0.00035504,2]
[423141879,1779889839000,-300.0,0.00035504,2]
[423141889,1779889839000,-578.28315025,0.00035504,2]
[423141890,1779889839000,-300.0,0.00035504,2]
[423141882,1779889839000,-300.0,0.00035504,2]
[423141878,1779889839000,-300.0,0.00035504,2]
[423141871,1779889839000,-300.0,0.00035504,2]
[423141887,1779889839000,-464.48677942,0.00035504,2]
[423141884,1779889839000,-594.79850986,0.00035504,2]
[423141888,1779889839000,-300.0,0.00035504,2]
[423141881,1779889839000,-300.0,0.00035504,2]
[423141886,1779889839000,-300.0,0.00035504,2]
[423141885,1779889839000,-300.0,0.00035504,2]
[423141892,1779889839000,-300.0,0.00035504,2]
[423141891,1779889839000,-452.52893397,0.00035504,2]
[423141893,1779889839000,-300.0,0.00035504,2]
[423141894,1779889839000,-300.0,0.00035504,2]
[423141895,1779889839000,-300.0,0.00035504,2]
[423141896,1779889839000,-300.0,0.00035504,2]
[423141837,1779889839000,-300.0,0.00035504,2]
[423141880,1779889839000,-1634.44392223,0.00035504,2]
[423141869,1779889839000,-300.0,0.00035504,2]
[423141883,1779889839000,-300.0,0.00035504,2]
[423141876,1779889839000,-1148.83589152,0.00035504,2]
[423141870,1779889839000,-300.0,0.00035504,2]
[423141839,1779889839000,-493.38669858,0.00035504,2]
[423141841,1779889839000,-300.0,0.00035504,2]
[423141842,1779889839000,-386.65085318,0.00035504,2]
[423141845,1779889839000,-605.31118564,0.00035504,2]
[423141840,1779889839000,-300.0,0.00035504,2]
[423141844,1779889839000,-300.0,0.00035504,2]
[423141850,1779889839000,-528.48327171,0.00035504,2]
[423141848,1779889839000,-300.0,0.00035504,2]
[423141847,1779889839000,-300.0,0.00035504,2]
[423141846,1779889839000,-300.0,0.00035504,2]
[423141851,1779889839000,-1068.40163352,0.00035504,2]
[423141849,1779889839000,-300.0,0.00035504,2]
[423141843,1779889839000,-300.0,0.00035504,2]
[423141864,1779889839000,-300.0,0.00035504,2]
[423141877,1779889839000,-310.02493426,0.00035504,2]
[423141853,1779889839000,-300.0,0.00035504,2]
[423141865,1779889839000,-1263.96825586,0.00035504,2]
[423141861,1779889839000,-300.99795142,0.00035504,2]
[423141855,1779889839000,-727.07827244,0.00035504,2]
[423141859,1779889839000,-300.0,0.00035504,2]
[423141856,1779889839000,-300.0,0.00035504,2]
[423141860,1779889839000,-300.0,0.00035504,2]
[423141852,1779889839000,-894.65434383,0.00035504,2]
[423141854,1779889839000,-313.66497829,0.00035504,2]
[423141862,1779889839000,-300.0,0.00035504,2]
[423141857,1779889839000,-302.21937029,0.00035504,2]
[423141863,1779889839000,-300.0,0.00035504,2]
[423141921,1779889840000,-9.39731349,0.00035504,2]
[423141926,1779889840000,-48.90552772,0.00035504,2]
[423141919,1779889840000,-300.0,0.00035504,2]
[423141923,1779889840000,-48.90552772,0.00035504,2]
[423141922,1779889840000,-435.08385737,0.00035504,2]
[423141924,1779889840000,-251.09447228,0.00035504,2]
[423141925,1779889840000,-2130.93,0.00030085,2]
[423141928,1779889840000,-300.0,0.00035504,2]
[423141933,1779889840000,-300.0,0.00035504,2]
[423141938,1779889840000,-727.07827244,0.00035504,2]
[423141927,1779889840000,-300.0,0.00035504,2]
[423141939,1779889840000,-300.0,0.00035504,2]
[423141930,1779889840000,-605.31118564,0.00035504,2]
[423141934,1779889840000,-300.0,0.00035504,2]
[423141931,1779889840000,-300.0,0.00035504,2]
[423141917,1779889840000,-449.17313882,0.00035504,2]
[423141935,1779889840000,-528.48327171,0.00035504,2]
[423141929,1779889840000,-300.0,0.00035504,2]
[423141920,1779889840000,-300.0,0.00035504,2]
[423141904,1779889840000,-1096.2926835,0.00035504,2]
[423141916,1779889840000,-300.0,0.00035504,2]
[423141932,1779889840000,-300.0,0.00035504,2]
[423141901,1779889840000,-300.0,0.00035504,2]
[423141902,1779889840000,-300.0,0.00035504,2]
[423141898,1779889840000,-484.76763572,0.00035504,2]
[423141899,1779889840000,-310.28230408,0.00035504,2]
[423141897,1779889840000,-300.0,0.00035504,2]
[423141905,1779889840000,-300.00000001,0.00035504,2]
[423141903,1779889840000,-300.00000001,0.00035504,2]
[423141918,1779889840000,-300.0,0.00035504,2]
[423141906,1779889840000,-168.54768323,0.00035504,2]
[423141912,1779889840000,-246.24420691,0.00035504,2]
[423141910,1779889840000,-300.0,0.00035504,2]
[423141907,1779889840000,-131.45231677,0.00035504,2]
[423141909,1779889840000,-371.57842453,0.00035504,2]
[423141911,1779889840000,-300.0,0.00035504,2]
[423141914,1779889840000,-150.0,0.00028536,30]
[423141913,1779889840000,-164.66,0.00028519,30]
[423141915,1779889840000,-53.75579309,0.00035504,2]
[423141908,1779889840000,-300.0,0.00035504,2]
[423141936,1779889840000,-1068.40163352,0.00035504,2]
[423141900,1779889840000,-300.0,0.00035504,2]
[423141944,1779889840000,-300.0,0.00035504,2]
[423141960,1779889840000,-300.09384644,0.00035504,2]
[423141974,1779889840000,-300.0,0.00035504,2]
[423141976,1779889840000,-300.0,0.00035504,2]
[423141965,1779889840000,-300.0,0.00035504,2]
[423141968,1779889840000,-300.0,0.00035504,2]
[423141972,1779889840000,-300.0,0.00035504,2]
[423141969,1779889840000,-300.0,0.00035504,2]
[423141973,1779889840000,-464.48677942,0.00035504,2]
[423141961,1779889840000,-300.0,0.00035504,2]
[423141970,1779889840000,-594.79850986,0.00035504,2]
[423141967,1779889840000,-300.0,0.00035504,2]
[423141971,1779889840000,-300.0,0.00035504,2]
[423141978,1779889840000,-300.0,0.00035504,2]
[423141980,1779889840000,-300.0,0.00035504,2]
[423141977,1779889840000,-452.52893397,0.00035504,2]
[423141979,1779889840000,-300.0,0.00035504,2]
[423141981,1779889840000,-300.0,0.00035504,2]
[423141937,1779889840000,-894.65434383,0.00035504,2]
[423141966,1779889840000,-1634.44392223,0.00035504,2]
[423141959,1779889840000,-950.32029804,0.00035504,2]
[423141975,1779889840000,-578.28315025,0.00035504,2]
[423141962,1779889840000,-1148.83589152,0.00035504,2]
[423141942,1779889840000,-300.0,0.00035504,2]
[423141958,1779889840000,-865.6208675,0.00035504,2]
[423141940,1779889840000,-302.21937029,0.00035504,2]
[423141943,1779889840000,-300.99795142,0.00035504,2]
[423141941,1779889840000,-300.0,0.00035504,2]
[423141951,1779889840000,-300.0,0.00035504,2]
[423141949,1779889840000,-300.0,0.00035504,2]
[423141947,1779889840000,-300.0,0.00035504,2]
[423141945,1779889840000,-300.0,0.00035504,2]
[423141950,1779889840000,-1263.96825586,0.00035504,2]
[423141946,1779889840000,-300.0,0.00035504,2]
[423141953,1779889840000,-527.62572404,0.00035504,2]
[423141963,1779889840000,-310.02493426,0.00035504,2]
[423141956,1779889840000,-300.0,0.00035504,2]
[423141955,1779889840000,-300.0,0.00035504,2]
[423141954,1779889840000,-372.88318182,0.00035504,2]
[423141964,1779889840000,-300.0,0.00035504,2]
[423141952,1779889840000,-344.45437934,0.00035504,2]
[423141948,1779889840000,-300.0,0.00035504,2]
[423141957,1779889840000,-300.0,0.00035504,2]
[423142001,1779889841000,-7844.90767247,0.00036182,2]
[423141999,1779889841000,-863.68638929,0.00036,120]
[423142003,1779889841000,-171.84,0.0003621,110]
[423142002,1779889841000,-150.0,0.00036202,30]
[423142004,1779889841000,-152.0,0.00036224,7]
[423142010,1779889841000,-500.0,0.00036399,30]
[423142006,1779889841000,-2000.0,0.000363,2]
[423142008,1779889841000,-1358.42,0.00036306,2]
[423142011,1779889841000,-500.0,0.00036399,2]
[423142007,1779889841000,-874.54196339,0.000363,10]
[423141998,1779889841000,-1498.22407538,0.00035969,2]
[423142009,1779889841000,-150.0,0.00036387,7]
[423142005,1779889841000,-33218.9209,0.000363,2]
[423142000,1779889841000,-151.0,0.00036153,30]
[423141982,1779889841000,-300.0,0.00035504,2]
[423141997,1779889841000,-150.0,0.00035951,2]
[423141995,1779889841000,-184.7831,0.00035837,2]
[423141993,1779889841000,-150.0,0.00035737,7]
[423141994,1779889841000,-832.0,0.00035808,30]
[423141992,1779889841000,-171.84,0.0003567,80]
[423141990,1779889841000,-303.80851446,0.00035616,7]
[423141984,1779889841000,-484.76763572,0.00035504,2]
[423141985,1779889841000,-1000.0,0.00035616,30]
[423141987,1779889841000,-1000.0,0.00035616,30]
[423141983,1779889841000,-300.0,0.00035504,2]
[423141986,1779889841000,-1000.0,0.00035616,30]
[423141989,1779889841000,-1102.11452881,0.00035616,30]
[423141988,1779889841000,-1000.0,0.00035616,30]
[423142012,1779889841000,-140653.0,0.000364,30]
[423141996,1779889841000,-150.0,0.00035923,30]
[423142013,1779889841000,-200.0,0.000364,90]
[423141991,1779889841000,-150.0,0.00035645,30]
[423142016,1779889841000,-200.0,0.000364,90]
[423142017,1779889841000,-260.372207,0.000364,90]
[423142041,1779889841000,-150.0,0.00037037,7]
[423142046,1779889841000,-11820.22794558,0.00037203,2]
[423142045,1779889841000,-200.64187747,0.000372,120]
[423142043,1779889841000,-293.26647947,0.00037093,2]
[423142042,1779889841000,-7844.90767247,0.00037037,2]
[423142044,1779889841000,-874.54196338,0.000371,11]
[423142040,1779889841000,-150.0,0.00037037,7]
[423142034,1779889841000,-162.7,0.00036888,2]
[423142035,1779889841000,-150.0,0.000369,30]
[423142033,1779889841000,-6063.0,0.00036882,2]
[423142032,1779889841000,-931.0,0.00036882,2]
[423142030,1779889841000,-3555.962,0.00036882,2]
[423142031,1779889841000,-1272.0,0.00036882,2]
[423142028,1779889841000,-350.0,0.00036835,15]
[423142038,1779889841000,-150.0,0.00037037,7]
[423142025,1779889841000,-150.0,0.00036759,30]
[423142029,1779889841000,-1356.0,0.00036882,2]
[423142039,1779889841000,-150.0,0.00037037,7]
[423142037,1779889841000,-150.0,0.00037037,30]
[423142026,1779889841000,-171.84,0.0003676,120]
[423142027,1779889841000,-327.63889694,0.00036822,120]
[423142021,1779889841000,-250.0,0.00036606,30]
[423142018,1779889841000,-9564.57257439,0.00036418,2]
[423142020,1779889841000,-5000.0,0.00036505,2]
[423142036,1779889841000,-157.90300786,0.0003698,5]
[423142014,1779889841000,-200.0,0.000364,90]
[423142023,1779889841000,-152.0,0.00036676,5]
[423142022,1779889841000,-138380.5007,0.00036606,30]
[423142015,1779889841000,-200.0,0.000364,90]
[423142019,1779889841000,-150.0,0.0003648,30]
[423142024,1779889841000,-159.28862893,0.00036713,60]
[423142146,1779889842000,-253.0,0.0003726,30]
[423142144,1779889842000,-157.90300786,0.00037254,5]
[423142149,1779889842000,-16.17380987,0.000373,60]
[423142142,1779889842000,-1544.76866939,0.00037203,2]
[423142139,1779889842000,-20.15412197,0.00035504,2]
[423142137,1779889842000,-310.28230408,0.00035504,2]
[423142148,1779889842000,-514.0,0.00037286,14]
[423142140,1779889842000,-279.84587803,0.00035504,2]
[423142181,1779889843000,-244.89,0.000376,120]
[423142178,1779889843000,-150.0,0.00037594,30]
[423142180,1779889843000,-140653.0,0.000376,30]
[423142185,1779889843000,-200.0,0.00037694,10]
[423142186,1779889843000,-1288.0,0.00037718,5]
[423142177,1779889843000,-152.0,0.0003753,7]
[423142174,1779889843000,-200.0,0.00037516,10]
[423142176,1779889843000,-157.90300786,0.00037528,5]
[423142183,1779889843000,-541.0,0.00037653,30]
[423142182,1779889843000,-1652.28951,0.0003762,92]
[423142175,1779889843000,-1500.0,0.0003752,60]
[423142170,1779889843000,-199.97,0.0003748,120]
[423142184,1779889843000,-150.0,0.00037687,7]
[423142171,1779889843000,-199.97,0.0003748,120]
[423142172,1779889843000,-152.0,0.00037488,7]
[423142169,1779889843000,-150.0,0.00037449,2]
[423142165,1779889843000,-1875.02711226,0.00037355,2]
[423142168,1779889843000,-152.0,0.00037414,7]
[423142167,1779889843000,-175.8955777,0.000374,30]
[423142166,1779889843000,-2000.0,0.000374,7]
[423142163,1779889843000,-1434.05245791,0.00037355,2]
[423142156,1779889843000,-155.66619013,0.000373,60]
[423142160,1779889843000,-438.56943369,0.00037355,2]
[423142158,1779889843000,-150.0,0.00037315,30]
[423142162,1779889843000,-2816.92357053,0.00037355,2]
[423142164,1779889843000,-3000.0,0.00037355,2]
[423142179,1779889843000,-500.0,0.00037599,30]
[423142173,1779889843000,-2006.0,0.000375,7]
[423142189,1779889843000,-500.0,0.00037794,60]
[423142206,1779889843000,-151.0,0.00037999,2]
[423142187,1779889843000,-1652.28952,0.0003772,93]
[423142218,1779889843000,-84647.80948885,0.00038,60]